bitfinex/quotes_SOLUSD_20241021
["timestamp","ask_amount","ask_price","bid_price","bid_amount"]
[1729531984325,0.1,165.97,165.78,20.0]
[1729531984326,6.5333,165.91,165.78,20.0]
[1729531984532,6.0292,165.86,165.74,43.776884]
[1729531984729,6.028,165.9,165.74,43.776884]
[1729531985138,6.5333,165.91,165.74,43.776884]
[1729531985330,6.0277,165.9,165.74,43.776884]
[1729531985528,6.0282,165.89,165.74,43.776884]
[1729531989143,6.5333,165.91,165.75,0.1]
[1729531989346,6.5333,165.91,165.77,43.776884]
[1729531991158,12.5606,165.91,165.77,43.776884]
[1729531991740,6.5333,165.91,165.77,43.776884]
[1729531991933,6.028,165.9,165.77,43.776884]
[1729531992137,12.5607,165.91,165.77,43.776884]
[1729531993352,6.5333,165.91,165.77,43.776884]
[1729531993667,6.028,165.9,165.77,43.776884]
[1729531994359,6.0282,165.89,165.77,43.776884]
[1729531995453,6.0283,165.89,165.77,43.776884]
[1729531995655,6.0284,165.88,165.77,43.776884]
[1729531996161,6.5333,165.91,165.77,43.776884]
[1729531996363,6.0283,165.89,165.77,43.776884]
[1729531996564,6.0289,165.87,165.77,43.776884]
[1729531996739,23.776884,165.9,165.74,23.776884]
[1729531997143,6.0297,165.85,165.74,23.776884]
[1729531997548,6.0297,165.85,165.73,16.3091]
[1729531997956,6.0297,165.85,165.74,20.0]
[1729531998851,6.0305,165.83,165.74,20.0]
[1729531999168,6.0297,165.85,165.74,20.0]
[1729531999569,6.0302,165.83,165.74,20.0]
[1729531999757,6.031,165.81,165.74,20.0]
[1729532000257,6.031,165.81,165.69,16.6297]
[1729532001474,6.031,165.81,165.7,23.776884]
[1729532001764,6.031,165.81,165.71,20.0]
[1729532003466,6.0318,165.79,165.7,20.0]
[1729532003851,28.2534,165.8,165.7,20.0]
[1729532004577,22.222,165.8,165.7,20.0]
[1729532004747,28.2534,165.8,165.7,20.0]
[1729532005351,22.222,165.8,165.7,20.0]
[1729532005569,37.3716,165.84,165.72,20.0]
[1729532005871,6.0305,165.83,165.72,20.0]
[1729532007270,6.0306,165.82,165.72,20.0]
[1729532008682,6.0304,165.83,165.72,20.0]
[1729532008978,6.0302,165.83,165.72,20.0]
[1729532009679,6.0307,165.82,165.72,20.0]
[1729532013369,23.776884,165.83,165.72,20.0]
[1729532013570,6.0312,165.81,165.7,20.0]
[1729532014072,5.5312,165.81,165.7,20.0]
[1729532014677,22.2969,165.84,165.7,20.0]
[1729532014979,6.0302,165.83,165.72,20.0]
[1729532016277,6.0306,165.82,165.72,20.0]
[1729532019576,15.0765,165.82,165.7,20.0]
[1729532019758,21.8071,165.8,165.65,22.71472898]
[1729532020083,6.033,165.76,165.65,16.4166]
[1729532020783,6.0331,165.76,165.65,16.4166]
[1729532020992,6.0334,165.75,165.65,16.4166]
[1729532021290,23.776884,165.79,165.61,22.48321802]
[1729532021576,21.5069,165.72,165.61,22.48321802]
[1729532021984,21.5069,165.72,165.61,16.183]
[1729532022185,15.4726,165.72,165.61,22.48437504]
[1729532022688,6.3951,165.73,165.62,20.0]
[1729532022867,16.2962,165.76,165.65,23.776884]
[1729532023181,22.329,165.76,165.66,20.0]
[1729532023383,6.0337,165.74,165.66,20.0]
[1729532023882,6.0337,165.74,165.62,43.776884]
[1729532024458,16.2962,165.76,165.62,43.776884]
[1729532024659,6.0332,165.75,165.62,43.776884]
[1729532024882,6.0331,165.75,165.62,43.776884]
[1729532026480,16.2962,165.76,165.62,43.776884]
[1729532026667,6.0335,165.74,165.62,43.776884]
[1729532027793,16.2962,165.76,165.62,43.776884]
[1729532027998,6.0334,165.75,165.62,43.776884]
[1729532028175,6.0336,165.74,165.62,43.776884]
[1729532034794,22.3293,165.76,165.62,43.776884]
[1729532035095,6.0333,165.75,165.62,43.776884]
[1729532038086,16.2962,165.76,165.62,43.776884]
[1729532038471,6.4191,165.77,165.63,16.285]
[1729532038678,6.4191,165.77,165.65,43.776884]
[1729532039097,22.0932,165.8,165.65,43.776884]
[1729532039488,16.0619,165.8,165.65,43.776884]
[1729532039691,16.0619,165.8,165.67,43.776884]
[1729532040500,6.5165,165.81,165.68,0.1]
[1729532040675,15.703,165.84,165.67,43.876884]
[1729532040876,15.703,165.84,165.69,43.776884]
[1729532041200,15.703,165.84,165.71,43.776884]
[1729532045083,21.733,165.84,165.71,47.53025564]
[1729532045407,15.703,165.84,165.71,47.53025564]
[1729532045809,21.7329,165.84,165.71,47.53025564]
[1729532046106,6.0308,165.82,165.7,16.5145]
[1729532046312,6.0305,165.83,165.7,16.5145]
[1729532046606,21.733,165.84,165.7,16.5145]
[1729532046812,15.703,165.84,165.7,16.5145]
[1729532047111,6.0303,165.83,165.7,16.5145]
[1729532047305,6.0303,165.83,165.73,20.0]
[1729532047685,15.703,165.84,165.73,20.0]
[1729532047995,6.0312,165.81,165.71,20.0]
[1729532048201,6.0316,165.8,165.71,20.0]
[1729532048911,23.776884,165.83,165.71,20.0]
[1729532049093,6.0305,165.83,165.73,20.0]
[1729532049297,21.7331,165.84,165.73,20.0]
[1729532049804,15.703,165.84,165.73,20.0]
[1729532050004,21.7329,165.84,165.73,20.0]
[1729532050708,15.703,165.84,165.75,20.0]
[1729532057392,15.703,165.84,165.76,23.776884]
[1729532057600,15.703,165.84,165.77,20.0]
[1729532061415,15.703,165.84,165.72,3.59248459]
[1729532061722,15.703,165.84,165.74,23.776884]
[1729532062026,15.703,165.84,165.75,20.0]
[1729532062597,15.703,165.84,165.77,20.0]
[1729532064432,15.703,165.84,165.71,20.0]
[1729532064612,15.703,165.84,165.72,23.776884]
[1729532064923,15.703,165.84,165.75,20.0]
[1729532067406,6.0306,165.82,165.7,20.24079745]
[1729532068125,15.703,165.84,165.7,16.5145]
[1729532068624,6.0302,165.83,165.71,20.0]
[1729532069014,6.0306,165.82,165.71,20.0]
[1729532069911,6.0306,165.82,165.73,20.0]
[1729532070327,15.703,165.84,165.71,20.0]
[1729532070529,6.031,165.81,165.71,20.0]
[1729532072735,6.0316,165.8,165.71,20.0]
[1729532072914,6.0311,165.81,165.71,20.0]
[1729532074320,6.0304,165.83,165.73,20.0]
[1729532076007,6.0307,165.82,165.73,20.0]
[1729532076429,6.0317,165.79,165.71,20.0]
[1729532076727,6.0317,165.79,165.7,16.5145]
[1729532077816,6.0317,165.79,165.71,20.0]
[1729532078710,6.0308,165.82,165.71,20.0]
[1729532079029,15.703,165.84,165.73,20.0]
[1729532079214,6.0303,165.83,165.73,20.0]
[1729532081146,15.703,165.84,165.73,20.0]
[1729532081147,21.7329,165.84,165.73,20.0]
[1729532082135,6.0316,165.8,165.71,20.0]
[1729532082318,6.0317,165.79,165.71,20.0]
[1729532082522,15.0756,165.83,165.71,20.0]
[1729532082720,12.2672,165.78,165.69,20.0]
[1729532082922,15.6635,165.77,165.66,16.5757]
[1729532083128,6.0331,165.76,165.66,16.5757]
[1729532084132,6.0332,165.75,165.66,16.5757]
[1729532084329,6.0329,165.76,165.67,20.0]
[1729532084538,15.6635,165.77,165.67,20.0]
[1729532084718,6.0334,165.75,165.67,20.0]
[1729532084913,30.333084,165.76,165.63,6.29877117]
[1729532085126,30.333084,165.76,165.58,6.336]
[1729532085127,23.776884,165.73,165.58,6.336]
[1729532085323,6.0352,165.7,165.58,6.336]
[1729532086316,6.0352,165.7,165.59,20.0]
[1729532089033,23.776884,165.73,165.61,20.0]
[1729532089225,6.0347,165.71,165.61,20.0]
[1729532091822,30.0,165.74,165.64,23.776884]
[1729532092028,30.0,165.74,165.65,20.0]
[1729532092242,12.489,165.76,165.65,36.0271]
[1729532097557,6.4562,165.76,165.65,36.0271]
[1729532097932,12.489,165.76,165.65,36.0271]
[1729532098740,6.4562,165.76,165.67,20.0]
[1729532099860,15.6635,165.77,165.69,20.0]
[1729532102163,21.696,165.77,165.69,20.0]
[1729532102471,6.0328,165.76,165.66,20.0]
[1729532102668,6.0332,165.75,165.66,20.0]
[1729532105647,6.6448,165.74,165.66,20.0]
[1729532109759,12.6784,165.74,165.66,20.0]
[1729532111269,15.6635,165.77,165.68,20.0]
[1729532112340,6.5215,165.78,165.65,16.0271]
[1729532112341,6.5215,165.78,165.7,20.0]
[1729532112762,6.0316,165.8,165.7,20.0]
[1729532113580,16.6431,165.81,165.7,20.0]
[1729532113867,22.6741,165.81,165.72,20.0]
[1729532114551,16.6431,165.81,165.72,20.0]
[1729532114751,22.6741,165.81,165.72,20.0]
[1729532116653,6.0894,165.82,165.72,20.0]
[1729532116654,6.0894,165.82,165.74,20.0]
[1729532116849,15.085,165.85,165.76,20.0]
[1729532117075,15.085,165.85,165.77,23.776884]
[1729532117271,21.1133,165.89,165.78,20.0]
[1729532120172,21.1133,165.89,165.79,23.776884]
[1729532120382,21.1133,165.89,165.8,20.0]
[1729532120554,6.1472,165.9,165.8,20.0]
[1729532120555,6.1472,165.9,165.82,20.0]
[1729532120760,21.7788,165.93,165.82,20.0]
[1729532121277,15.752,165.93,165.82,20.0]
[1729532121459,15.752,165.93,165.84,20.0]
[1729532121875,0.6110315,165.96,165.87,23.776884]
[1729532122055,0.6110315,165.96,165.88,20.0]
[1729532122876,0.6110315,165.96,165.89,23.776884]
[1729532123070,0.6110315,165.96,165.9,20.0]
[1729532124859,0.6110315,165.96,165.91,23.776884]
[1729532125065,0.6110315,165.96,165.92,20.0]
[1729532125870,0.6110315,165.96,165.93,23.776884]
[1729532126075,0.6110315,165.96,165.92,20.0]
[1729532126788,0.6110315,165.96,165.9,20.0]
[1729532126991,0.6110315,165.96,165.87,15.3178]
[1729532128489,0.6110315,165.96,165.88,20.0]
[1729532133269,0.6110315,165.96,165.87,20.0]
[1729532133779,6.6367315,165.96,165.87,20.0]
[1729532134089,6.6367315,165.96,165.85,20.0]
[1729532135676,22.156,165.95,165.85,20.0]
[1729532135880,23.776884,165.94,165.79,22.9607]
[1729532136090,6.0275,165.91,165.79,22.9607]
[1729532136586,6.0268,165.93,165.79,22.9607]
[1729532137176,6.0263,165.94,165.8,20.0]
[1729532137373,22.156,165.95,165.8,20.0]
[1729532137894,22.156,165.95,165.83,23.776884]
[1729532138191,28.1819,165.95,165.84,20.0]
[1729532138581,6.0265,165.94,165.84,20.0]
[1729532141477,22.156,165.95,165.84,20.0]
[1729532141678,6.0269,165.93,165.82,20.0]
[1729532142092,6.0273,165.92,165.82,20.0]
[1729532142299,6.0273,165.92,165.74,0.1]
[1729532142300,25.15894058,165.92,165.74,15.6284]
[1729532142498,27.6824,165.86,165.74,15.6284]
[1729532142701,6.0296,165.85,165.74,15.6284]
[1729532143780,27.6823,165.86,165.75,43.776884]
[1729532145279,21.6531,165.86,165.75,43.776884]
[1729532145991,27.6825,165.86,165.75,43.776884]
[1729532146991,6.0295,165.85,165.75,20.0]
[1729532147196,21.6531,165.86,165.7,36.4648]
[1729532147197,6.0303,165.83,165.7,36.4648]
[1729532147600,6.0299,165.84,165.7,36.4648]
[1729532148804,30.0,165.82,165.74,20.0]
[1729532149401,30.0,165.82,165.71,20.0]
[1729532149592,36.0306,165.82,165.73,20.0]
[1729532149909,6.0316,165.8,165.7,16.4648]
[1729532150903,21.8952,165.79,165.66,15.1093]
[1729532151140,6.032,165.78,165.66,15.1093]
[1729532151486,6.0325,165.77,165.66,15.1093]
[1729532152899,6.0325,165.77,165.67,20.0]
[1729532153299,6.0321,165.78,165.67,20.0]
[1729532153515,21.8952,165.79,165.69,20.0]
[1729532154487,27.9269,165.79,165.69,20.0]
[1729532157508,27.9269,165.79,165.71,20.0]
[1729532157509,21.8952,165.79,165.71,20.0]
[1729532158111,15.3159,165.79,165.71,20.0]
[1729532158314,6.0314,165.8,165.67,43.776884]
[1729532159231,6.0317,165.8,165.67,43.776884]
[1729532160026,6.0318,165.79,165.67,43.776884]
[1729532160627,23.776884,165.81,165.67,43.776884]
[1729532161334,30.0,165.82,165.67,43.776884]
[1729532161632,6.031,165.81,165.67,43.776884]
[1729532162331,6.0313,165.8,165.67,43.776884]
[1729532162630,6.0311,165.81,165.67,43.776884]
[1729532163129,30.0,165.82,165.67,43.776884]
[1729532163634,30.0,165.82,165.67,43.876884]
[1729532163820,30.0,165.82,165.67,43.776884]
[1729532166414,30.0,165.82,165.67,43.876884]
[1729532166735,30.0,165.82,165.67,43.776884]
[1729532167338,30.0,165.82,165.67,43.876884]
[1729532167944,30.0,165.82,165.67,43.776884]
[1729532172230,36.0309,165.82,165.67,43.776884]
[1729532172641,30.0,165.82,165.67,43.776884]
[1729532172842,6.031,165.81,165.67,43.776884]
[1729532173018,36.0307,165.82,165.67,43.776884]
[1729532173346,30.0,165.82,165.68,0.1]
[1729532173680,30.0,165.82,165.71,43.776884]
[1729532174546,6.0292,165.86,165.71,43.776884]
[1729532175127,27.9518,165.87,165.71,43.776884]
[1729532175448,21.923,165.87,165.73,43.776884]
[1729532175739,6.0294,165.86,165.73,43.776884]
[1729532177046,6.0295,165.85,165.73,43.776884]
[1729532177551,6.0301,165.84,165.73,43.776884]
[1729532177940,15.0738,165.85,165.72,16.4611]
[1729532178144,6.0307,165.82,165.72,16.4611]
[1729532179146,6.0307,165.82,165.74,20.0]
[1729532179337,23.776884,165.86,165.74,20.0]
[1729532179539,6.0303,165.83,165.74,20.0]
[1729532181044,23.776884,165.86,165.74,20.0]
[1729532181360,6.0306,165.82,165.74,20.0]
[1729532185853,23.776884,165.84,165.73,20.0]
[1729532186035,6.0309,165.82,165.73,20.0]
[1729532187634,6.0303,165.83,165.73,20.0]
[1729532189249,21.923,165.87,165.73,20.0]
[1729532189647,6.0303,165.83,165.73,20.0]
[1729532189956,6.0306,165.82,165.73,20.0]
[1729532193376,6.0312,165.81,165.73,20.0]
[1729532193570,15.0738,165.85,165.73,20.0]
[1729532195349,6.0307,165.82,165.73,20.0]
[1729532196757,6.0301,165.84,165.74,23.776884]
[1729532196952,6.0302,165.83,165.75,20.0]
[1729532206505,21.923,165.87,165.78,23.776884]
[1729532206792,27.9519,165.87,165.79,20.0]
[1729532208079,15.8687,165.87,165.8,23.776884]
[1729532208281,6.0282,165.89,165.81,20.0]
[1729532208474,22.4629,165.91,165.81,20.0]
[1729532208674,6.0283,165.89,165.79,20.0]
[1729532208882,6.0283,165.89,165.79,43.776884]
[1729532210375,22.4629,165.91,165.79,43.776884]
[1729532210694,28.4903,165.91,165.79,43.776884]
[1729532211213,22.4629,165.91,165.79,43.776884]
[1729532211386,16.0146,165.91,165.79,43.776884]
[1729532211692,6.0268,165.93,165.79,43.776884]
[1729532211898,6.0275,165.91,165.79,43.776884]
[1729532212989,6.027,165.92,165.79,43.776884]
[1729532214902,37.5283,165.95,165.79,43.776884]
[1729532215079,6.0273,165.92,165.79,43.776884]
[1729532219384,6.0276,165.91,165.79,43.776884]
[1729532219902,6.0277,165.9,165.79,43.776884]
[1729532220581,6.0274,165.91,165.79,43.776884]
[1729532222601,15.0656,165.94,165.79,43.776884]
[1729532222795,6.027,165.92,165.79,43.776884]
[1729532224389,23.776884,165.94,165.79,43.776884]
[1729532224589,6.0278,165.9,165.79,43.776884]
[1729532225087,6.0274,165.91,165.79,43.776884]
[1729532228610,6.0269,165.93,165.79,43.776884]
[1729532229189,22.4629,165.95,165.79,43.776884]
[1729532229390,28.4888,165.95,165.79,43.776884]
[1729532229612,22.4629,165.95,165.81,43.776884]
[1729532229800,22.4629,165.95,165.85,20.0]
[1729532229997,22.4629,165.95,165.86,23.776884]
[1729532230206,22.4629,165.95,165.87,20.0]
[1729532241522,22.4629,165.95,165.89,20.0]
[1729532242623,22.4629,165.95,165.83,23.63267238]
[1729532242792,22.4629,165.95,165.85,20.0]
[1729532243117,22.4629,165.95,165.87,20.0]
[1729532249229,22.4629,165.95,165.83,3.63267238]
[1729532249411,15.0656,165.94,165.8,15.1387]
[1729532249609,6.0276,165.91,165.8,15.1387]
[1729532249911,30.0,165.89,165.8,15.1387]
[1729532250902,30.0,165.89,165.82,20.0]
[1729532256000,52.3966,165.89,165.78,6.2478]
[1729532256241,52.3966,165.89,165.77,23.776884]
[1729532256428,6.0287,165.88,165.77,23.776884]
[1729532256716,6.0287,165.88,165.76,16.0517]
[1729532257100,19.69,165.86,165.76,16.0517]
[1729532257720,19.69,165.86,165.77,20.0]
[1729532257930,19.69,165.86,165.79,20.0]
[1729532258418,19.69,165.86,165.77,20.0]
[1729532258802,19.69,165.86,165.74,9.79249664]
[1729532258803,19.69,165.86,165.74,6.0643]
[1729532259006,19.69,165.86,165.72,15.5985]
[1729532259223,21.845,165.83,165.72,15.5985]
[1729532259713,19.69,165.82,165.72,15.5985]
[1729532261019,19.69,165.82,165.73,20.0]
[1729532262009,19.69,165.82,165.74,23.776884]
[1729532262218,19.69,165.82,165.75,20.0]
[1729532263528,6.0292,165.86,165.75,20.0]
[1729532263903,6.0292,165.86,165.76,23.776884]
[1729532264220,6.0292,165.86,165.77,20.0]
[1729532266027,21.5408,165.87,165.77,20.0]
[1729532266231,27.5699,165.87,165.77,20.0]
[1729532266623,6.0292,165.86,165.77,20.0]
[1729532272442,15.4353,165.87,165.79,20.0]
[1729532272737,15.4353,165.87,165.81,20.0]
[1729532273441,6.0277,165.9,165.81,20.0]
[1729532274730,6.1055,165.91,165.81,20.0]
[1729532274936,12.1328,165.91,165.81,20.0]
[1729532275312,6.1055,165.91,165.81,20.0]
[1729532275729,12.1329,165.91,165.81,20.0]
[1729532277138,6.028,165.9,165.81,20.0]
[1729532280531,12.1331,165.91,165.81,20.0]
[1729532283747,6.028,165.9,165.81,20.0]
[1729532285250,6.1055,165.91,165.81,20.0]
[1729532285444,12.1329,165.91,165.81,20.0]
[1729532286941,6.1055,165.91,165.81,20.0]
[1729532287129,6.0277,165.9,165.81,20.0]
[1729532288628,12.133,165.91,165.81,20.0]
[1729532297363,6.1055,165.91,165.81,20.0]
[1729532297660,12.1329,165.91,165.81,20.0]
[1729532298549,6.1055,165.91,165.81,20.0]
[1729532298734,12.1329,165.91,165.81,20.0]
[1729532302763,6.1055,165.91,165.81,20.0]
[1729532303143,12.1329,165.91,165.81,20.0]
[1729532305265,16.6326,165.92,165.81,20.0]
[1729532305556,6.15595227,165.94,165.83,20.0]
[1729532305749,12.2062,165.95,165.83,20.0]
[1729532306660,6.0262,165.94,165.83,20.0]
[1729532307052,6.1802,165.95,165.83,20.0]
[1729532307257,12.2061,165.95,165.84,15.4235]
[1729532307640,6.1802,165.95,165.85,20.0]
[1729532307837,6.1802,165.95,165.87,20.0]
[1729532308155,0.6110315,165.96,165.87,20.0]
[1729532308839,0.6110315,165.96,165.89,20.0]
[1729532309239,0.6110315,165.96,165.88,23.776884]
[1729532309240,0.6110315,165.96,165.91,20.0]
[1729532309955,0.6110315,165.96,165.9,15.4235]
[1729532309956,0.6110315,165.96,165.93,20.0]
[1729532310743,0.6110315,165.96,165.95,20.0]
[1729532312172,0.6110315,165.96,165.95,43.776884]
[1729532314167,21.96243321,166.03,165.97,20.0]
[1729532314469,21.96243321,166.03,165.95,41.7905]
[1729532314470,21.96243321,166.03,165.99,20.0]
[1729532315053,21.96243321,166.03,165.95,15.1882]
[1729532315280,15.0607,166.08,165.95,15.1882]
[1729532315281,6.0215,166.07,165.96,20.0]
[1729532315568,35.10086265,166.08,165.96,20.0]
[1729532315781,6.0219,166.06,165.96,20.0]
[1729532316874,35.10086265,166.08,165.96,20.0]
[1729532317172,35.10086265,166.08,165.92,3.63467105]
[1729532317173,6.5723,166.02,165.92,20.0]
[1729532318268,12.5957,166.02,165.94,20.0]
[1729532318958,6.5723,166.02,165.94,20.0]
[1729532321275,6.5723,166.02,165.92,20.0]
[1729532321583,6.0243,166.0,165.92,20.0]
[1729532322169,6.0242,166.0,165.92,20.0]
[1729532322367,6.0238,166.01,165.92,20.0]
[1729532323581,6.5723,166.02,165.92,20.0]
[1729532323882,12.5957,166.02,165.92,20.0]
[1729532325787,6.5723,166.02,165.92,20.0]
[1729532326164,12.5957,166.02,165.92,20.0]
[1729532326681,15.7407,166.03,165.94,20.0]
[1729532328762,15.7407,166.03,165.93,23.776884]
[1729532328763,6.0237,166.01,165.92,20.0]
[1729532328961,6.0237,166.01,165.92,23.776884]
[1729532329157,6.0233,166.02,165.92,23.776884]
[1729532329580,30.0,165.99,165.92,23.776884]
[1729532330476,30.0,165.99,165.93,20.0]
[1729532331080,6.0233,166.02,165.93,20.0]
[1729532335285,21.7638,166.03,165.93,20.0]
[1729532336186,15.7407,166.03,165.95,20.0]
[1729532336393,15.7407,166.03,165.97,20.0]
[1729532338988,15.7407,166.03,165.95,20.0]
[1729532339202,15.7407,166.03,165.97,20.0]
[1729532339682,15.7407,166.03,165.95,20.0]
[1729532339683,6.0234,166.02,165.95,20.0]
[1729532339888,21.7638,166.03,165.95,20.0]
[1729532341674,6.0236,166.02,165.93,23.776884]
[1729532341996,6.0236,166.02,165.94,20.0]
[1729532343195,6.0244,165.99,165.92,20.0]
[1729532343399,6.2594,166.02,165.87,22.7859]
[1729532343701,6.025,165.98,165.87,22.7859]
[1729532344309,6.0252,165.97,165.87,22.7859]
[1729532344488,15.0593,166.01,165.87,22.7859]
[1729532344687,6.0249,165.98,165.88,20.0]
[1729532345508,6.0246,165.99,165.88,20.0]
[1729532345683,6.0237,166.01,165.88,20.0]
[1729532345884,6.0242,166.0,165.88,20.0]
[1729532346201,6.0245,165.99,165.88,20.0]
[1729532346406,6.2594,166.02,165.88,20.0]
[1729532346612,38.836184,166.01,165.88,20.0]
[1729532346781,6.0255,165.96,165.88,20.0]
[1729532348178,12.6385,165.96,165.88,20.0]
[1729532350003,30.0,165.95,165.88,20.0]
[1729532350998,36.0261,165.95,165.88,20.0]
[1729532351493,30.0,165.95,165.88,20.0]
[1729532353210,6.613,165.96,165.88,20.0]
[1729532353782,6.0245,165.99,165.9,20.0]
[1729532354006,12.6719,166.0,165.9,20.0]
[1729532354711,6.0244,165.99,165.9,20.0]
[1729532356916,6.6476,166.0,165.9,20.0]
[1729532357504,6.0247,165.99,165.9,20.0]
[1729532358308,12.6719,166.0,165.91,23.776884]
[1729532358493,12.6719,166.0,165.92,20.0]
[1729532359001,6.6476,166.0,165.92,20.0]
[1729532360610,15.3715,166.01,165.94,20.0]
[1729532360812,12.3519,166.04,165.96,20.0]
[1729532361106,6.3293,166.04,165.96,20.0]
[1729532361412,15.07,166.05,165.96,20.0]
[1729532362098,21.0923,166.05,165.96,20.0]
[1729532366389,15.07,166.05,165.98,20.0]
[1729532369219,15.07,166.05,165.95,20.0]
[1729532369515,15.07,166.05,165.97,20.0]
[1729532371313,21.41139249,166.1,166.01,20.0]
[1729532371508,4.50239316,166.09,166.01,20.0]
[1729532371700,6.8277315,166.12,166.04,23.776884]
[1729532371907,6.8277315,166.12,166.05,20.0]
[1729532372322,6.8277315,166.12,166.02,20.0]
[1729532372504,12.8475315,166.12,166.04,20.0]
[1729532372814,6.8277315,166.12,166.04,20.0]
[1729532377301,6.8277315,166.12,166.0,20.0]
[1729532378400,12.8475315,166.12,166.0,20.0]
[1729532378802,12.8475315,166.12,166.02,20.0]
[1729532381005,6.8277315,166.12,166.02,20.0]
[1729532381328,12.8474315,166.12,166.02,20.0]
[1729532381526,11.8474315,166.12,166.02,20.0]
[1729532385298,5.8277315,166.12,166.03,23.776884]
[1729532385508,5.8277315,166.12,166.04,20.0]
[1729532390407,21.2532,166.14,166.04,20.0]
[1729532391425,15.2342,166.14,166.05,23.776884]
[1729532391626,15.2342,166.14,166.06,20.0]
[1729532391816,6.0936,166.16,166.08,20.0]
[1729532393433,21.4708,166.18,166.08,20.0]
[1729532393613,15.4532,166.18,166.1,20.0]
[1729532393927,6.0936,166.2,166.12,20.0]
[1729532394135,6.0172,166.19,166.12,20.0]
[1729532394309,6.0936,166.2,166.07,23.776884]
[1729532394509,6.0936,166.2,166.09,23.776884]
[1729532394510,12.1105,166.2,166.09,23.776884]
[1729532394824,6.0936,166.2,166.1,20.0]
[1729532395032,6.0936,166.2,166.12,20.0]
[1729532395410,12.19422234,166.22,166.13,15.0541]
[1729532395609,12.19422234,166.22,166.14,20.0]
[1729532395815,6.0162,166.22,166.14,20.0]
[1729532397820,21.1412,166.19,166.1,23.776884]
[1729532398049,21.1412,166.19,166.11,20.0]
[1729532398214,21.1412,166.19,166.1,20.0]
[1729532398532,6.0175,166.18,166.09,15.6089]
[1729532399815,6.0175,166.18,166.1,20.0]
[1729532400338,15.1237,166.19,166.1,20.0]
[1729532400538,21.1411,166.19,166.1,20.0]
[1729532401938,15.1237,166.19,166.1,20.0]
[1729532402130,6.4474,166.2,166.12,20.0]
[1729532402933,12.4645,166.2,166.12,20.0]
[1729532403416,6.4474,166.2,166.12,20.0]
[1729532403621,12.4644,166.2,166.1,20.0]
[1729532404134,6.4474,166.2,166.1,20.0]
[1729532404343,12.4643,166.2,166.1,20.0]
[1729532404710,0.3787,166.17,166.1,20.0]
[1729532406418,6.3967,166.17,166.1,20.0]
[1729532407135,0.3787,166.17,166.1,20.0]
[1729532407914,6.3966,166.17,166.1,20.0]
[1729532408610,0.3787,166.17,166.1,20.0]
[1729532408811,6.0182,166.16,166.06,20.0]
[1729532409420,23.0029,166.17,166.06,20.0]
[1729532409630,6.0183,166.16,166.06,20.0]
[1729532409830,6.0187,166.15,166.06,20.0]